[Event "Croatian 1A League 2022"]
[Site "Porec"]
[Date "2022.10.02"]
[Round "9.9"]
[White "Ivekovic, Bozidar"]
[Black "Saric, Ante"]
[Result "0-1"]
[ECO "B43"]
[WhiteElo "2407"]
[BlackElo "2510"]
[Annotator "TA"]
[PlyCount "74"]
[EventDate "2022.09.24"]
[EventType "team-tourn"]
[EventCountry "CRO"]
[SourceTitle "playchess.com"]
[Source "ChessBase"]
[SourceQuality "1"]
[TimeControl "40/5400+30:1800+30"]

{[%evp 15,74,23,29,8,20,16,28,22,25,0,16,22,14,15,22,33,22,15,14,14,22,0,3,0,0,0,0,0,8,0,0,0,0,-17,0,0,0,0,0,-48,-48,-45,-44,-91,-63,-214,-203,-247,-247,-375,-367,-383,-364,-563,-556,-627,-572,-6211,-2675,-6187,-3801]} 1. e4 {[%emt 0:00:04]} c5 {[%emt 0:00:06]} 2. Nc3 {[%emt 0:00:04]} a6 {[%emt 0:01:13]} 3. Nf3 {[%emt 0:00:11]} b5 {[%emt 0:00:33]} 4. d4 {[%emt 0:00:04]} cxd4 {[%emt 0:00:31]} 5. Nxd4 {[%emt 0:00:04]} Bb7 {[%emt 0:00:53]} 6. Bd3 {[%emt 0:00:08]} e6 {[%emt 0:01:01]} 7. O-O {[%emt 0:00:09]} Nc6 {[%emt 0:00:05]} 8. Nxc6 {[%emt 0:08:50]} Bxc6 {[%emt 0:00:09]} 9. Qe2 {[%emt 0:00:08] B43: Sicilian: Kan Variation: 5 Nc3.} Bc5 {[%emt 0:05:01]} 10. Be3 {[%emt 0:05:15]} Bxe3 {[%emt 0:03:18]} 11. Qxe3 {[%emt 0:00:05] White has an edge.} Ne7 {[%emt 0:00:20][%cal Bg8e7,Be7f5,Bf5h4,Bh4g6][%mdl 32]} 12. e5 {[%emt 0:14:49]} O-O {[%emt 0:11:24] [#]} 13. Ne4 $146 {[%emt 0:20:56]} ({Predecessor:} 13. Rad1 Qc7 14. f4 f5 15. exf6 Rxf6 16. Ne4 Bxe4 17. Bxe4 Raf8 18. g3 Rc8 19. Qd3 {1-0 (35) Josse,M (2235)-Quirke,J (2086) Chess.com INT 2022}) 13... Nf5 {[%emt 0:11:12]} 14. Qh3 {[%emt 0:00:05]} Qh4 {[%emt 0:00:48]} 15. Qxh4 {[%emt 0:01:16]} Nxh4 {[%emt 0:00:08]} 16. f3 {[%emt 0:01:08]} f6 {[%emt 0:03:17]} 17. exf6 {[%emt 0:03:32]} gxf6 {[%emt 0:00:18]} 18. Nd6 {[%emt 0:00:09]} f5 {[%emt 0:02:25]} 19. Be2 {[%emt 0:08:08]} Kg7 {[%emt 0:13:12]} 20. g3 {[%emt 0:04:20]} Ng6 {[%emt 0:00:06]} 21. f4 {[%emt 0:01:11]} Ra7 {[%emt 0:04:54]} 22. c4 {[%emt 0:02:10]} bxc4 {[%emt 0:03:22]} 23. Bxc4 {[%emt 0:02:57]} Ne7 {[%emt 0:03:25]} 24. Rfc1 {[%emt 0:18:27]} Nc8 {[%emt 0:04:25]} 25. Nxc8 {[%emt 0:00:26]} Rxc8 {[%emt 0:00:06]} 26. b4 {[%emt 0:06:05]} Kf6 {[%emt 0:13:21]} 27. Bd3 {[%emt 0:01:27]} (27. a4 $11) 27... Rb8 $15 {[%emt 0:00:32]} 28. Rab1 {[%emt 0:00:44]} Be4 {[%emt 0:02:28]} 29. Bxe4 {[%emt 0:00:50]} (29. Rc3 $1 $15 {deserves consideration.}) 29... fxe4 {[%emt 0:00:02][%mdl 4096] Endgame KRR-KRR} 30. Rc4 $2 {[%emt 0:00:07] White does not recover from this.} (30. a3 $15) 30... d5 $19 {[%emt 0:00:25]} 31. Rc6 {[%emt 0:00:02] [#]} Rab7 $1 {[%emt 0:00:15]} 32. Rd1 {[%emt 0:00:41]} (32. a3 {was called for.} a5 33. g4) 32... Rb6 {[%emt 0:07:38]} 33. Rxb6 {[%emt 0:00:12]} Rxb6 {[%emt 0:00:03]} 34. Rd4 {[%emt 0:00:05]} (34. a3 {was necessary.} Rc6 35. g4) 34... Rd6 {[%emt 0:01:20] Black is clearly winning.} 35. a4 {[%emt 0:00:16]} e5 {[%emt 0:00:13]} 36. fxe5+ {[%emt 0:00:08]} Kxe5 {[%emt 0:00:04]} 37. Rd2 {[%emt 0:00:34]} d4 {[%emt 0:00:11] Weighted Error Value: White=0.70/Black=0.02 (flawless)} 0-1

[Event "Croatian 1A League 2022"]
[Site "Porec"]
[Date "2022.10.02"]
[Round "9.10"]
[White "Plenca, Julijan"]
[Black "Ostovic, Matija"]
[Result "0-1"]
[ECO "C41"]
[WhiteElo "2447"]
[BlackElo "2386"]
[Annotator "TA"]
[PlyCount "74"]
[EventDate "2022.09.24"]
[EventType "team-tourn"]
[EventCountry "CRO"]
[SourceTitle "playchess.com"]
[Source "ChessBase"]
[SourceQuality "1"]
[TimeControl "40/5400+30:1800+30"]

{[%evp 15,74,40,36,24,41,57,52,36,52,25,82,88,78,84,66,57,66,45,57,43,89,87,77,12,68,53,71,59,123,35,22,27,16,30,16,17,20,12,37,22,99,29,9,22,62,53,82,23,23,23,96,58,55,29,193,114,111,-831,-820,-731,-662]} 1. e4 {[%emt 0:00:02]} d6 {[%emt 0:00:04]} 2. d4 {[%emt 0:00:05]} Nf6 {[%emt 0:00:09]} 3. Nc3 {[%emt 0:00:19]} e5 {[%emt 0:00:05]} 4. Nf3 {[%emt 0:00:06]} Nbd7 {[%emt 0:00:08]} 5. Bc4 {[%emt 0:00:08]} Be7 {[%emt 0:00:22]} 6. a4 {[%emt 0:00:18]} O-O {[%emt 0:00:13]} 7. O-O {[%emt 0:00:06]} c6 {[%emt 0:00:12]} 8. h3 {[%emt 0:00:04]} exd4 {[%emt 0:00:25] 8...h6 gains popularity.} 9. Nxd4 {[%emt 0:00:59] C41: Philidor Defence.} Ne5 {[%emt 0:00:34]} 10. Bb3 {[%emt 0:01:21]} Re8 {[%emt 0:01:29]} 11. Bf4 {[%emt 0:09:37] White is slightly better.} Bf8 {[%emt 0:06:11] [#]} 12. Bh2 $146 {[%emt 0:01:14]} ({Predecessor:} 12. Re1 Be6 13. Bg3 Bxb3 14. cxb3 a5 15. Kh1 Qb6 16. f4 Ng6 17. Nf5 Rad8 18. Qc2 {0-1 (25) Darmarakis,M (2110)-Chilov,A (2185) Athens 1996}) 12... Bd7 {[%emt 0:04:50]} (12... Ned7 $11 {keeps the balance.}) 13. f4 $16 {[%emt 0:01:29]} Ng6 {[%emt 0:00:18]} 14. Qd3 {[%emt 0:00:16]} Qa5 {[%emt 0:16:14]} 15. Kh1 {[%emt 0:02:01]} Rad8 {[%emt 0:02:15]} 16. Rae1 {[%emt 0:01:21]} Bc8 {[%emt 0:05:28]} 17. Nf3 {[%emt 0:03:53]} Be6 {[%emt 0:21:41]} (17... d5 $1 $14 18. exd5 Rxe1 19. Rxe1 Ne7) 18. Bxe6 {[%emt 0:04:21]} fxe6 {[%emt 0:00:08]} 19. f5 {[%emt 0:02:05]} ({White should play} 19. Ng5 $16) 19... exf5 {[%emt 0:03:47]} (19... Ne5 $1 $11 20. Bxe5 dxe5) 20. exf5 $14 {[%emt 0:00:36]} Rxe1 {[%emt 0:01:09]} 21. Rxe1 {[%emt 0:00:16]} ({Reject} 21. Nxe1 Ne5 22. Bxe5 Qxe5 $11) 21... Ne7 {[%emt 0:00:36]} ({Black should try} 21... Nh8 $1 $14) 22. Nd4 {[%emt 0:01:17]} ({Don't play} 22. Bxd6 $6 Qxf5 23. Rxe7 Qxd3 24. cxd3 Bxe7 25. Bxe7 Rxd3 $14) (22. g4 $16) 22... Ned5 {[%emt 0:00:52]} 23. Qc4 {[%emt 0:07:23]} Qc5 {[%emt 0:09:40]} 24. Qxc5 {[%emt 0:01:14]} dxc5 {[%emt 0:00:09]} 25. Ne6 {[%emt 0:00:23]} Rd7 {[%emt 0:01:38]} 26. Be5 {[%emt 0:04:37]} c4 {[%emt 0:09:44]} 27. Ne4 $36 {[%emt 0:01:25][%mdl 2048] White has the initiative.} b5 {[%emt 0:03:15]} (27... Be7 $11) 28. Nxf6+ {[%emt 0:02:14]} (28. Nxf8 $16 Kxf8 29. Nc5) 28... gxf6 $11 {[%emt 0:03:26]} 29. Bd4 {[%emt 0:00:08]} bxa4 {[%emt 0:01:58]} 30. Ra1 {[%emt 0:03:03]} a3 {[%emt 0:06:21]} 31. bxa3 {[%emt 0:00:14]} (31. Nxf8 $16 Kxf8 32. Rxa3) 31... Bd6 {[%emt 0:00:47]} 32. g4 {[%emt 0:01:34]} h6 {[%emt 0:01:00]} (32... c3 $11) 33. Rb1 {[%emt 0:00:48]} Kf7 {[%emt 0:00:41]} 34. a4 {[%emt 0:02:01]} Nf4 $2 {[%emt 0:00:41] [#]} (34... Nb4 $11 {and Black is okay.}) 35. Nxf4 {[%emt 0:01:04]} (35. Rb7 $1 $18 {[%cal Rb7d7][%mdl 512]} Rxb7 36. Nd8+ Ke7 37. Nxb7) 35... Bxf4 $16 {[%emt 0:00:07]} 36. c3 {[%emt 0:00:24][%mdl 8192] [#]} (36. Bc3 $16) 36... Rxd4 $1 $19 {[%emt 0:00:54][%mdl 512]} 37. Rb7+ {[%emt 0:04:52]} (37. Rb4 Rd3) 37... Ke8 {[%emt 0:00:05] Weighted Error Value: White=0.45/Black=0.27 (precise)} 0-1

[Event "Croatian 1A League 2022"]
[Site "Porec"]
[Date "2022.10.02"]
[Round "9.11"]
[White "Ivekovic, Zvonimir"]
[Black "Plenca, Jadranko"]
[Result "1/2-1/2"]
[ECO "C45"]
[WhiteElo "2380"]
[BlackElo "2412"]
[Annotator "TA"]
[PlyCount "81"]
[EventDate "2022.09.24"]
[EventType "team-tourn"]
[EventCountry "CRO"]
[SourceTitle "playchess.com"]
[Source "ChessBase"]
[SourceQuality "1"]
[TimeControl "40/5400+30:1800+30"]

{[%evp 15,81,27,34,30,41,51,50,51,51,27,49,59,58,59,61,66,55,59,61,67,61,47,49,39,33,38,31,16,17,6,13,0,20,0,0,0,0,0,0,-2,0,-6,-8,-10,0,0,0,0,0,-12,-12,-24,-18,-19,0,-37,0,0,0,0,0,-54,-54,-60,0,-36,-63,-83]} 1. e4 {[%emt 0:00:02]} e5 {[%emt 0:00:06]} 2. Nf3 {[%emt 0:00:02]} Nc6 {[%emt 0:00:06]} 3. d4 {[%emt 0:00:03]} exd4 {[%emt 0:00:05]} 4. Nxd4 {[%emt 0:00:04]} Nf6 {[%emt 0:00:07]} 5. Nxc6 {[%emt 0:00:03]} bxc6 {[%emt 0:00:05]} 6. e5 {[%emt 0:00:03]} Ne4 {[%emt 0:03:03]} 7. Qf3 {[%emt 0:05:04]} Ng5 {[%emt 0:01:23]} 8. Qg3 {[%emt 0:05:29]} Ne6 {[%emt 0:01:00]} 9. Bd3 {[%emt 0:03:08] C45: Scotch Game.} d5 {[%emt 0:01:31]} 10. O-O {[%emt 0:02:26]} h5 {[%emt 0:02:46]} 11. f4 {[%emt 0:04:24][%cal Bf2f4,Bf4f5][%mdl 32] White is slightly better.} h4 {[%emt 0:02:49]} 12. Qf3 {[%emt 0:01:39]} Bc5+ {[%emt 0:00:54]} 13. Be3 {[%emt 0:01:19]} Bxe3+ {[%emt 0:02:20]} 14. Qxe3 {[%emt 0:00:03]} Qe7 {[%emt 0:00:07]} 15. f5 {[%emt 0:04:08] White is more active.} Qc5 {[%emt 0:00:07] [#]} 16. Qf2 $146 {[%emt 0:02:07]} ({Predecessor:} 16. Kf2 Qxe3+ 17. Kxe3 Nc5 18. Nd2 Rh5 19. Rac1 Nxd3 20. cxd3 Bxf5 21. Rxc6 d4+ 22. Ke2 {½-½ (60) Plat,V (2539)-Nemeth,M (2489) Mali Losinj 2017}) 16... Qxf2+ {[%emt 0:05:24]} 17. Rxf2 {[%emt 0:00:02]} Nc5 {[%emt 0:00:24]} 18. Nd2 $1 {[%emt 0:00:38]} Rh5 {[%emt 0:02:01]} 19. e6 {[%emt 0:16:40]} Nxd3 {[%emt 0:07:40]} 20. cxd3 {[%emt 0:00:17]} fxe6 {[%emt 0:02:25]} 21. fxe6 {[%emt 0:05:10]} Bxe6 {[%emt 0:02:25]} 22. Re1 {[%emt 0:00:23]} Kd7 {[%emt 0:14:09]} 23. d4 {[%emt 0:00:16][%mdl 1024] White has compensation.} Re8 {[%emt 0:06:01]} 24. Nb3 {[%emt 0:00:40] [#] And now Nc5+ would win.} Bf5 {[%emt 0:04:02]} 25. Nc5+ {[%emt 0:00:37]} Kd8 {[%emt 0:00:06]} 26. Rc1 {[%emt 0:05:35]} g6 {[%emt 0:02:31]} 27. Nb7+ {[%emt 0:07:51][%mdl 64] [#] Discovered Attack} Kd7 {[%emt 0:04:52]} 28. Na5 {[%emt 0:04:06]} Re6 {[%emt 0:01:24]} 29. Nb3 {[%emt 0:01:13] Nc5+ is the strong threat.} Re7 {[%emt 0:02:53]} 30. Nc5+ {[%emt 0:02:37]} Kd6 {[%emt 0:03:45]} 31. Kf1 {[%emt 0:01:54]} Rh8 {[%emt 0:00:55]} 32. Rf3 {[%emt 0:05:39]} Rb8 {[%emt 0:03:09]} 33. b3 {[%emt 0:01:40]} Rf8 {[%emt 0:02:12]} 34. b4 {[%emt 0:07:58]} h3 {[%emt 0:01:37]} 35. gxh3 {[%emt 0:03:56]} Bxh3+ {[%emt 0:01:18]} 36. Kf2 $1 {[%emt 0:00:01]} Rxf3+ {[%emt 0:01:26]} 37. Kxf3 {[%emt 0:00:02]} Bf5 {[%emt 0:00:38]} 38. Kf2 {[%emt 0:05:06]} (38. h4 $11) 38... Rh7 $15 {[%emt 0:01:04]} 39. Kg2 {[%emt 0:01:37]} Rh3 {[%emt 0:01:54]} (39... Rh4 $15 40. Nb7+ Kd7 41. Nc5+ Ke8) 40. Nb7+ {[%emt 0:00:00]} Kd7 {[%emt 0:00:00]} 41. Nc5+ {[%emt 0:03:41] Weighted Error Value: White=0.09 (flawless) /Black=0.06 (flawless)} 1/2-1/2

[Event "Croatian 1A League 2022"]
[Site "Porec"]
[Date "2022.10.02"]
[Round "9.12"]
[White "Bobanac, Miro"]
[Black "Zovko, Mario"]
[Result "1-0"]
[ECO "A37"]
[WhiteElo "2245"]
[BlackElo "2306"]
[Annotator "TA"]
[PlyCount "85"]
[EventDate "2022.09.24"]
[EventType "team-tourn"]
[EventCountry "CRO"]
[SourceTitle "playchess.com"]
[Source "ChessBase"]
[SourceQuality "1"]
[TimeControl "40/5400+30:1800+30"]

{[%evp 20,85,31,19,28,31,68,45,51,45,59,71,70,56,93,105,97,97,79,74,108,75,89,69,86,83,87,84,100,99,127,118,128,128,201,76,151,150,165,88,90,91,99,37,68,68,98,73,191,181,219,220,221,152,501,512,520,520,444,495,495,464,779,770,772,758,621,385]} 1. Nf3 {[%emt 0:00:30]} c5 {[%emt 0:05:15]} 2. c4 {[%emt 0:01:30]} d6 {[%emt 0:02:43]} 3. g3 {[%emt 0:01:54]} e5 {[%emt 0:00:05]} 4. Nc3 {[%emt 0:00:16]} g6 {[%emt 0:00:09]} 5. Bg2 {[%emt 0:00:26]} Bg7 {[%emt 0:00:05]} 6. O-O {[%emt 0:01:15]} Ne7 {[%emt 0:00:14]} 7. d3 {[%emt 0:03:42]} Nbc6 {[%emt 0:01:46]} 8. Bd2 {[%emt 0:01:05]} O-O {[%emt 0:00:29]} 9. a3 {[%emt 0:00:57]} a5 {[%emt 0:02:00]} 10. Rb1 {[%emt 0:02:40]} h6 {[%emt 0:04:19]} 11. Ne1 {[%emt 0:00:47][%cal Bf3e1,Be1c2,Bc2e3,Be3d5][%mdl 32]} f5 {[%emt 0:07:44] A37: Symmetrical English vs ...g6: 4 Bg2 Bg7 5 Nf3.} 12. Nc2 {[%emt 0:02:20]} Rb8 {[%emt 0:13:54]} 13. Ne3 {[%emt 0:04:23] [#]} b6 $146 {[%emt 0:13:30] White is slightly better.} ({Predecessor:} 13... Kh7 14. Ned5 b6 15. b4 axb4 16. axb4 Be6 17. b5 Na7 18. Ra1 Nac8 19. Ra6 Nxd5 20. Nxd5 Bxd5 21. Bxd5 {1-0 (45) Murphy,C (2077)-Mason,D (2147) Wakefield 2017}) 14. Ned5 {[%emt 0:01:55]} Bb7 {[%emt 0:08:54]} 15. b4 {[%emt 0:04:16]} axb4 {[%emt 0:02:43]} 16. axb4 {[%emt 0:00:10]} Ba8 {[%emt 0:06:26]} 17. b5 {[%emt 0:13:34]} Nd4 {[%emt 0:06:51]} 18. Ra1 {[%emt 0:03:59]} Nxd5 {[%emt 0:04:36]} 19. Nxd5 {[%emt 0:02:15]} Rf7 {[%emt 0:07:57]} 20. e3 {[%emt 0:06:06]} Ne6 {[%emt 0:00:16]} 21. Ra3 $36 {[%emt 0:00:48][%mdl 2048] White has the initiative.} Nc7 {[%emt 0:01:07]} 22. Nxc7 $1 {[%emt 0:07:32] White has more active pieces.} Bxg2 {[%emt 0:02:12]} 23. Kxg2 {[%emt 0:00:11]} Rxc7 {[%emt 0:00:07]} 24. Qf3 $1 {[%emt 0:00:37] Inhibits Ra8.} Qe7 {[%emt 0:01:02]} 25. Qd5+ {[%emt 0:00:42]} Kh7 {[%emt 0:00:07]} 26. Rfa1 {[%emt 0:01:19]} e4 {[%emt 0:02:21] [#]} (26... Qf7 $16) 27. R1a2 {[%emt 0:00:44]} (27. Ra8 $1 $18 {[%cal Ra8b8] and the rest is easy.} Rf8 28. Rxf8 Bxf8 29. Ra6 (29. Ra8 exd3 30. Rb8 Ra7 $18)) 27... h5 {[%emt 0:01:38]} ({Black should play} 27... Qe5) 28. Ra8 $16 {[%emt 0:02:06]} Rcb7 {[%emt 0:02:19] [#]} 29. R2a3 {[%emt 0:06:59]} (29. R2a7 $3 $18 {[%mdl 512]}) 29... h4 {[%emt 0:00:11]} 30. Rxb8 {[%emt 0:08:25]} Rxb8 {[%emt 0:00:05]} 31. Bc3 {[%emt 0:00:22]} (31. dxe4 $16 fxe4 32. Ra6) 31... Bxc3 {[%emt 0:03:02]} 32. Rxc3 $14 {[%emt 0:00:10][%mdl 4096] Endgame KQR-KQR} Rd8 {[%emt 0:00:42]} 33. Ra3 {[%emt 0:02:19][%cal Bc3a3,Ba3a6,Ba6a7][%mdl 32]} Rg8 {[%emt 0:01:18]} (33... exd3 $16 34. Rxd3 (34. Qxd3 Qb7+ 35. Qd5 Qxd5+ 36. cxd5 Rc8 $11) 34... hxg3) 34. Ra6 {[%emt 0:00:54]} Rb8 {[%emt 0:00:02]} 35. dxe4 {[%emt 0:03:54]} fxe4 {[%emt 0:00:05]} 36. gxh4 {[%emt 0:02:04]} Qxh4 $2 {[%emt 0:01:30] This move loses the game for Black.} (36... Rf8 $16) 37. Ra7+ $18 {[%emt 0:01:04] White is clearly winning.} Kh6 {[%emt 0:00:34]} 38. Qxd6 {[%emt 0:00:12]} ({And not} 38. Qf7 Qg4+ 39. Kh1 (39. Kf1 Qd1+ 40. Kg2 Qg4+ 41. Kh1 Qd1+ 42. Kg2 Qg4+ $11) 39... Qd1+ 40. Kg2 Qg4+ 41. Kh1 (41. Kf1 Qd1+ 42. Kg2 Qg4+ $11) 41... Qd1+ 42. Kg2 Qg4+ $11) 38... Rd8 {[%emt 0:00:20]} 39. Qg3 {[%emt 0:02:11]} Qxg3+ {[%emt 0:00:45]} 40. Kxg3 {[%emt 0:00:38] Strongly threatening Rb7.} ({Less strong is} 40. hxg3 Kg5 41. Rc7 Rd3 $18) ({Weaker is} 40. fxg3 Rd3 $16) 40... Kg5 {[%emt 0:00:00]} (40... Rf8 $142 41. Re7 Rf3+ 42. Kg2 Rf8 43. Rxe4 Kh7) 41. Rf7 {[%emt 0:00:27]} Rd6 {[%emt 0:01:48]} 42. h4+ {[%emt 0:00:31]} Kh6 {[%emt 0:00:01]} 43. Re7 {[%emt 0:00:16] Weighted Error Value: White=0.16 (very precise) /Black=0.33} 1-0

[Event "Croatian 1A League 2022"]
[Site "Porec"]
[Date "2022.10.02"]
[Round "9.13"]
[White "Fedorchuk, Sergey A."]
[Black "Vavulin, Maxim"]
[Result "1/2-1/2"]
[ECO "C92"]
[WhiteElo "2617"]
[BlackElo "2550"]
[Annotator "TA"]
[PlyCount "25"]
[EventDate "2022.09.24"]
[EventType "team-tourn"]
[EventCountry "CRO"]
[SourceTitle "playchess.com"]
[Source "ChessBase"]
[SourceQuality "1"]
[TimeControl "40/5400+30:1800+30"]

{[%evp 24,25,37,0]} 1. e4 {[%emt 0:00:03]} e5 {[%emt 0:00:03]} 2. Nf3 {[%emt 0:00:07]} Nc6 {[%emt 0:00:03]} 3. Bb5 {[%emt 0:00:09]} a6 {[%emt 0:00:04]} 4. Ba4 {[%emt 0:00:07]} Nf6 {[%emt 0:00:05]} 5. O-O {[%emt 0:00:07]} Be7 {[%emt 0:00:03]} 6. Re1 {[%emt 0:00:07]} b5 {[%emt 0:00:05]} 7. Bb3 {[%emt 0:00:05]} d6 {[%emt 0:00:04]} 8. c3 {[%emt 0:00:06]} O-O {[%emt 0:00:06]} 9. h3 {[%emt 0:00:05]} Re8 {[%emt 0:00:05] [#]} 10. Ng5 $146 {[%emt 0:00:09]} ({Predecessor:} 10. d4 Bb7 11. Ng5 Rf8 12. Nf3 Re8 13. Ng5 Rf8 14. Nf3 Re8 {½-½ (14) Giri,A (2761)-Maghsoodloo,P (2699) Chess.com INT 2022}) 10... Rf8 {[%emt 0:00:04]} 11. Nf3 {[%emt 0:00:04]} Re8 {[%emt 0:00:05]} 12. Ng5 {[%emt 0:00:04]} Rf8 {[%emt 0:00:04]} 13. Nf3 {[%emt 0:00:04]} 1/2-1/2

[Event "Croatian 1A League 2022"]
[Site "Porec"]
[Date "2022.10.02"]
[Round "9.14"]
[White "Fercec, Nenad"]
[Black "Bernadskiy, Vitaliy"]
[Result "1/2-1/2"]
[WhiteElo "2403"]
[BlackElo "2558"]
[Annotator "TA"]
[PlyCount "42"]
[EventDate "2022.09.24"]
[EventType "team-tourn"]
[EventCountry "CRO"]
[SourceTitle "playchess.com"]
[Source "ChessBase"]
[SourceQuality "1"]
[TimeControl "40/5400+30:1800+30"]

{[%evp 18,19,20,13]} 1. e4 {[%emt 0:00:03]} c6 {[%emt 0:00:07]} 2. d4 {[%emt 0:00:05]} d5 {[%emt 0:00:03]} 3. Nd2 {[%emt 0:00:05][%cal Bb1d2,Bd2e4,Be4g3][%mdl 32]} dxe4 {[%emt 0:00:05]} 4. Nxe4 {[%emt 0:00:04]} Bf5 {[%emt 0:00:04]} 5. Ng3 {[%emt 0:00:05]} Bg6 {[%emt 0:00:05]} 6. h4 {[%emt 0:00:05]} h6 {[%emt 0:00:03]} 7. Nf3 {[%emt 0:00:05]} Nd7 {[%emt 0:00:04]} 8. h5 {[%emt 0:00:05]} Bh7 {[%emt 0:00:04]} 9. Bd3 {[%emt 0:00:05]} Bxd3 {[%emt 0:00:04]} 10. Qxd3 {[%emt 0:01:24] [#]} ({Reject} 10. cxd3 Ngf6 $15) {Predecessor:} 10... e6 $146 {B19: Classical Caro-Kann: 4...Bf5 main line.} 11. Bd2 Ngf6 12. O-O-O Be7 13. Kb1 Qb6 14. Ne4 Rd8 15. c4 c5 16. Bc3 O-O 17. Qe2 Nxe4 18. Qxe4 Nf6 19. Qe2 cxd4 20. Bxd4 Bc5 21. Bxc5 Qxc5 {1-0 (47) Sevian,S (2684)-Keymer,V (2686) Chess.com INT 2022} 1/2-1/2

[Event "Croatian 1A League 2022"]
[Site "Porec"]
[Date "2022.10.02"]
[Round "9.16"]
[White "Zufic, Miroslav"]
[Black "Kovacevic, Blazimir"]
[Result "1/2-1/2"]
[WhiteElo "2370"]
[BlackElo "2405"]
[Annotator "TA"]
[PlyCount "33"]
[EventDate "2022.09.24"]
[EventType "team-tourn"]
[EventCountry "CRO"]
[SourceTitle "playchess.com"]
[Source "ChessBase"]
[SourceQuality "1"]
[TimeControl "40/5400+30:1800+30"]

{[%evp 15,16,22,29]} 1. g3 {[%emt 0:00:01]} c5 {[%emt 0:00:05]} 2. Bg2 {[%emt 0:00:02]} g6 {[%emt 0:00:04]} 3. f4 {[%emt 0:00:04]} Bg7 {[%emt 0:00:05]} 4. Nf3 {[%emt 0:00:02]} Nc6 {[%emt 0:00:05]} 5. O-O {[%emt 0:00:05]} d6 {[%emt 0:00:06]} 6. d3 {[%emt 0:00:03]} e5 {[%emt 0:00:04]} 7. Nc3 {[%emt 0:00:04]} Nge7 {[%emt 0:00:05]} 8. e4 {[%emt 0:00:04]} O-O {[%emt 0:00:05] [#]} {Predecessor:} 9. f5 $146 {B25: Closed Sicilian: 3 g3, lines without early Be3.} gxf5 10. Nh4 f4 11. gxf4 Ng6 12. Nf5 Bxf5 13. exf5 Nxf4 14. Bxf4 exf4 15. Rxf4 Qg5 16. Qg4 Qxg4 17. Rxg4 {½-½ (44) Libiszewski,F (2522)-Zubov,A (2598) Chess.com INT 2021} 1/2-1/2

[Event "Croatian 1A League 2022"]
[Site "Porec"]
[Date "2022.10.02"]
[Round "9.17"]
[White "Loncar, Robert"]
[Black "Franic, Milan"]
[Result "1/2-1/2"]
[ECO "C84"]
[WhiteElo "2367"]
[BlackElo "2365"]
[Annotator "TA"]
[PlyCount "31"]
[EventDate "2022.09.24"]
[EventType "team-tourn"]
[EventCountry "CRO"]
[SourceTitle "playchess.com"]
[Source "ChessBase"]
[SourceQuality "1"]
[TimeControl "40/5400+30:1800+30"]

{[%evp 15,31,10,31,29,23,17,33,33,32,21,60,56,58,25,28,27,23,0]} 1. e4 {[%emt 0:00:30]} e5 {[%emt 0:00:30]} 2. Nf3 {[%emt 0:00:05]} Nc6 {[%emt 0:00:04]} 3. Bb5 {[%emt 0:00:04]} a6 {[%emt 0:00:04]} 4. Ba4 {[%emt 0:00:07]} Nf6 {[%emt 0:00:06]} 5. d3 {[%emt 0:00:06]} d6 {[%emt 0:00:09]} 6. O-O {[%emt 0:00:07]} Be7 {[%emt 0:00:05]} 7. c3 {[%emt 0:00:09]} O-O {[%emt 0:00:09]} 8. Re1 {[%emt 0:00:07]} Re8 {[%emt 0:00:12]} 9. Nbd2 {[%emt 0:00:08][%cal Bb1d2,Bd2f1,Bf1g3][%mdl 32] C84: Closed Ruy Lopez: Unusual White 6th moves.} Bf8 {[%emt 0:00:10]} 10. Nf1 {[%emt 0:00:08]} b5 {[%emt 0:00:17]} 11. Bc2 {[%emt 0:00:07] White is slightly better.} h6 {[%emt 0:00:09]} 12. Ng3 {[%emt 0:00:10]} g6 {[%emt 0:00:09]} 13. a4 {[%emt 0:00:05]} Bd7 {[%emt 0:00:09] [#]} 14. axb5 $146 {[%emt 0:00:06]} ({Predecessor:} 14. d4 Bg7 15. h3 Qc8 16. Be3 exd4 17. cxd4 Nb4 18. Bb1 c5 19. axb5 Bxb5 20. Qd2 {1-0 (32) Golecki,J (2219)-Wolski,J (1889) Warsaw 2022}) 14... axb5 {[%emt 0:00:04]} 15. Rxa8 {[%emt 0:00:07]} Qxa8 {[%emt 0:00:02]} 16. Nf1 {[%emt 0:00:27] Weighted Error Value: White=0.08 (flawless) /Black=0.11 (very precise)} 1/2-1/2

[Event "Croatian 1A League 2022"]
[Site "Porec"]
[Date "2022.10.02"]
[Round "9.18"]
[White "Rubil, Marko"]
[Black "Sale, Srdjan"]
[Result "1/2-1/2"]
[ECO "C92"]
[WhiteElo "2270"]
[BlackElo "2366"]
[Annotator "TA"]
[PlyCount "45"]
[EventDate "2022.09.24"]
[EventType "team-tourn"]
[EventCountry "CRO"]
[SourceTitle "playchess.com"]
[Source "ChessBase"]
[SourceQuality "1"]
[TimeControl "40/5400+30:1800+30"]

{[%evp 18,20,25,3,41]} 1. e4 {[%emt 0:00:30]} e5 {[%emt 0:00:03]} 2. Nf3 {[%emt 0:00:01]} Nc6 {[%emt 0:00:04]} 3. Bb5 {[%emt 0:00:07]} a6 {[%emt 0:00:03]} 4. Ba4 {[%emt 0:00:05]} Nf6 {[%emt 0:00:03]} 5. O-O {[%emt 0:00:05]} Be7 {[%emt 0:00:03]} 6. Re1 {[%emt 0:00:05]} b5 {[%emt 0:00:04]} 7. Bb3 {[%emt 0:00:03]} d6 {[%emt 0:00:04]} 8. c3 {[%emt 0:00:05]} O-O {[%emt 0:00:03]} 9. h3 {[%emt 0:00:03]} Bb7 {[%emt 0:00:06]} 10. d3 {[%emt 0:00:06]} h6 {[%emt 0:00:08] [#] A rather calm draw. C92: Closed Ruy Lopez: 9...Be6, Karpov and Flohr-Zaitsev Variations.} {Predecessor:} 11. Nbd2 $146 Re8 12. Nf1 Bf8 13. Ne3 Na5 14. Bc2 c5 15. a3 Rc8 16. b4 Nc6 17. Bb3 Nb8 18. Bb2 Nbd7 19. Nh2 Nb6 20. Nhg4 Nh7 21. c4 bxc4 22. Nxc4 Nxc4 23. Bxc4 {½-½ (66) Firouzja,A (2759)-Le,Q (2709) chess24.com INT 2021} 1/2-1/2